Workbook

Sheet 견적_표지
A2: 견 적 서 표 지
A3: 상호: (주) 심포니소프트 / 사업자등록번호: 119-81-82402
A4: 업태: 서비스업 / 종목: 소프트웨어개발및공급업
A5: 주소: 서울시 서초구 남부순환로 2606 (금정빌딩 8층) / 대표자: 김호익
A7: (주)중견기업 귀중
B10: ◈ 프로젝트 : | C10: 내부 쇼핑몰(폐쇄몰) 구축 프로젝트
B11: ◈ 참 조 : | C11: 박승안 대표님
B12: ◈ 견적일자 : | C12: =TODAY() -> 2023-08-25
B13: ◈ 유효기간 : | C13: 1개월
B14: ◈ 결제방법 : | C14: 계약 30%, 검수제출 50% 검수완료:20%
B15: ◈ 납품기일 : | C15: 별첨된 프로젝트일정에 명시
B16: ◈ 견적금액 : | C16: =인건비_기준!L8 -> 125180000 | D16: 합계금액(부가세포함)
B17: ◈ 견적내용 : | C17: 귀사가 요청하신 프로젝트에 대해 상기금액으로 견적을 산출합니다. 견적산출의 근거가 되는 작업기간, 인력투입 등의 비용에 대한 자세한 사항은 첨부한 일정계획에 의합니다. 해당 견적은 발주사에서 제공한 스토리보드 또는 제안요청서에 의하여 작성되었습니다. * 투입인력 상세 내역은 계약 진행 후 조정하여 제출하도록 하겠습니다.
A26: 상기 프로젝트에 대해 다음과 같이 견적을 산출합니다.
F27: 주식회사 심포니소프트
F28: 대표이사 김 호 익

Sheet 인건비_기준
C2: 견 적 서
C3: (솔루션 개발 및 용역 제공)
C4: 유효기간: | E4: =견적_표지!C13 -> 1개월 | J4: =견적_표지!A3 -> 상호: (주) 심포니소프트 / 사업자등록번호: 119-81-82402
C5: 결제방법: | E5: =견적_표지!C14 -> 계약 30%, 검수제출 50% 검수완료:20% | J5: =견적_표지!A4 -> 업태: 서비스업 / 종목: 소프트웨어개발및공급업
A6: =#REF!=견적_표지!A5 ->  | C6: 납품기일: | E6: =견적_표지!C15 -> 별첨된 프로젝트일정에 명시 | J6: =견적_표지!A5 -> 주소: 서울시 서초구 남부순환로 2606 (금정빌딩 8층) / 대표자: 김호익
C7: =견적_표지!A7 -> (주)중견기업 귀중 | J7: 참조: | K7: =견적_표지!C11 -> 박승안 대표님
C8: 합계금액(부가세포함) | L8: =N38 -> 125180000
C10: 직접인건비
C11: 투입 분야 | F11: 인력 등급 | G11: 인원 | H11: 투입 개월 | J11: MM | K11: 일 노임단가 | L11: 월 노임단가 | M11: 참여율 | N11: 직접 인건비
C12: PM / DBA / 설계 | F12: 특급기술자 | K12: 406342 | L12: =20.8*K12 -> 8451913.6 | N12: =G12*H12*L12*M12 -> 0
F13: 고급기술자 | G13: 1 | H13: 1.5 | J13: 1.5 | K13: 305433 | L13: 6353006.4 | M13: 1 | N13: 9529509.6
F14: 중급기술자 | G14: 0 | H14: 0 | J14: =G14*H14 -> 0 | K14: 239748 | L14: 4986758.4 | M14: 1 | N14: 0
F15: 초급기술자 | G15: 0 | H15: 0 | J15: 0 | K15: 215681 | L15: 4486164.8 | M15: 1 | N15: 0
C16: Backend / Frontend | F16: 특급기술자 | K16: 406342 | L16: 8451913.6 | N16: 0
F17: 고급기술자 | K17: 305433 | L17: 6353006.4
F18: 중급기술자 | G18: 2 | H18: 3 | J18: =G18*H18 -> 6 | K18: 239748 | L18: 4986758.4 | M18: 1 | N18: =G18*H18*L18*M18 -> 29920550.4
F19: 초급기술자 | K19: 215681 | L19: 4486164.8 | N19: 0
C20: QA / 교육지원 | F20: 특급기술자 | K20: 406342 | L20: 8451913.6 | N20: 0
F21: 고급기술자 | G21: 0 | H21: 0 | J21: 0 | K21: 305433 | L21: 6353006.4 | N21: 0
F22: 중급기술자 | G22: 0 | H22: 0 | J22: 0 | K22: 239748 | L22: 4986758.4 | M22: 1 | N22: 0
F23: 초급기술자 | G23: 1 | H23: 0.5 | J23: 1 | K23: 215681 | L23: 4486164.8 | M23: 1 | N23: =G23*H23*L23*M23 -> 2243082.4
C24: 합계 | F24: 투입인력 | G24: =SUM(G12:G23) -> 4 | J24: =SUM(J12:J23) -> 8.5 | N24: =SUM(N12:N23) -> 41693142.4
C26: 제경비
C27: 내용 | M27: 제경비율 | N27: 제경비
C28: 직접인건비 ⅹ 제경비율 | M28: 1.1 | N28: =N24*M28 -> 45862456.64
C30: 기술료
C31: 내용 | M31: 기술료율 | N31: 기술료
C32: (직접인건비 + 제경비) ⅹ 기술비율 | M32: 0.3 | N32: =M32*(N24+N28) -> 26266679.71
C34: 표준 견적금액(만단위 절사) | N34: =INT((N24+N28+N32)/100000)*100000 -> 113800000
C35: 할인율 | M35: 0 | N35: =INT((N34*M35)/100000)*100000 -> 0
C36: 공급가액 | N36: =N34-N35 -> 113800000
C37: 부가세 | N37: =N36*0.1 -> 11380000
C38: 합계 금액 | N38: =N36+N37 -> 125180000
C39: 주요 옵션 포함사항
D40: 항 | E40: 목 | G40: 내 | I40: 용 | L40: 단위 | M40: 단가 | N40: 제공 형태
N41: 0
M43: 0 | N43: 0
C44: 기타 사항
C46: 산출근거 : 2019년도 적용 SW 기술자 등급별 평균임금 소프트웨어산업진흥법 제22조(소프트웨어사업의 대가지급) 4항 '소프트웨어 기술자의 노임단가"를 지칭함
C52: 산출방식 ◦ 개발비 = 직접인건비 + 제경비 + 기술료 + 직접경비
C53: ◦ 직접인건비 = 월노임단가(원) X 투입인원(명) X 투입기간(월) X 참여율(%)
C54: ◦ 제경비 = 직접인건비(원) X 제경비율(90%)
C55: ◦ 기술료 = (직접인건비 + 제경비) X 기술료율(5%)

Sheet 투입인력총괄현황 (hidden)
C2: 투입인력총괄현황
C3: =견적_표지!A3 -> 상호: (주) 심포니소프트 / 사업자등록번호: 119-81-82402
C4: =견적_표지!A4 -> 업태: 서비스업 / 종목: 소프트웨어개발및공급업
C5: =견적_표지!A5 -> 주소: 서울시 서초구 남부순환로 2606 (금정빌딩 8층) / 대표자: 김호익
C7: =견적_표지!A7 -> (주)중견기업 귀중
C8: =견적_표지!C11 -> 박승안 대표님
C10: 직접인건비
C11: 일련 번호 | D11: 식별 번호 | E11: 소속 | F11: 성명 | G11: 직위 | H11: 기술등급 | I11: 담당업무 | J11: 최종학력 (학교명) | K11: 해당분야 자격증 | L11: 해당분야 업무 경력 | M11: 투입기간 | N11: 투입공수 (M/M)
C12: 1 | D12: PO-1 | E12: (주)지우컴퍼니 | F12: 김호익 | G12: PO | H12: 고급 | I12: PO | J12: 학사 (연세대) | L12: 25년 | M12: 8 | N12: 8
C13: 2 | D13: PM-1 | E13: (주)지우컴퍼니 | F13: 조중현 | G13: PM | H13: 고급 | I13: PM | J13: 학사 (학은행) | K13: 정보처리기사 | L13: 10년 | M13: 8 | N13: 8
C14: 3 | D14: DB-1 | E14: (주)지우컴퍼니 | F14: 윤성준 | G14: 매니저 | H14: 고급 | I14: DBA | J14: 석사 (숭실대학원) | K14: 정보처리기사 | L14: 11년 | M14: 8 | N14: 8
C15: 4 | D15: PL-1 | E15: (주)지우컴퍼니 | F15: 이현실 | G15: 매니저 | H15: 중급 | I15: 기획/QA | J15: 학사 (유한대학) | L15: 15년 | M15: 8 | N15: 8
C16: 5 | D16: PL-2 | E16: (주)지우컴퍼니 | F16: 신윤식 | G16: 매니저 | H16: 중급 | I16: 기획/QA | J16: 석사 (숭실대학원) | K16: 정보처리기사 | L16: 12년 | M16: 8 | N16: 8
C17: 6 | D17: PL-3 | E17: (주)지우컴퍼니 | F17: 김민철 | G17: 매니저 | H17: 중급 | I17: 기획/QA | J17: 학사 (벽성대학) | L17: 17년 | M17: 8 | N17: 8
C18: 7 | D18: PL-4 | E18: (주)지우컴퍼니 | F18: 김진희 | G18: 매니저 | H18: 중급 | I18: 기획/QA | J18: 석사 (건국대) | K18: 정보처리기사 | L18: 12년 | M18: 8 | N18: 8
C19: 8 | D19: BD-1 | E19: (주)지우컴퍼니 | F19: 김지훈 | G19: 매니저 | H19: 중급 | I19: 개발자 | J19: 학사 (베이징대학) | L19: 6년 | M19: 6 | N19: 6
C20: 9 | D20: BD-2 | E20: (주)지우컴퍼니 | F20: 오세영 | G20: 매니저 | H20: 중급 | I20: 개발자 | J20: 학사 (우송대학) | K20: 정보처리기사 | L20: 6년 | M20: 6 | N20: 6
C21: 10 | D21: BD-3 | E21: (주)지우컴퍼니 | F21: 조원혁 | G21: 매니저 | H21: 중급 | I21: 개발자 | J21: 학사 (연세대) | L21: 5년 | M21: 6 | N21: 6
C22: 11 | D22: BD-4 | E22: (주)지우컴퍼니 | F22: Viet | G22: 매니저 | H22: 중급 | I22: 개발자 | J22: 학사 (HNT) | L22: 5년 | M22: 6 | N22: 6
C23: 12 | D23: FD-1 | E23: (주)지우컴퍼니 | F23: Tiep | G23: 대리 | H23: 중급 | I23: 개발자 | J23: 학사 (HNT) | L23: 5년 | M23: 6 | N23: 6
C24: 13 | D24: FD-2 | E24: (주)지우컴퍼니 | F24: Thu | G24: 대리 | H24: 중급 | I24: 개발자 | J24: 학사 (HNT) | L24: 3년 | M24: 6 | N24: 6
C25: 14 | D25: FD-3 | E25: (주)지우컴퍼니 | F25: Tung | G25: 대리 | H25: 중급 | I25: 개발자 | J25: 학사 (HNT) | L25: 2년 | M25: 6 | N25: 6
C26: 15 | D26: FD-4 | E26: (주)지우컴퍼니 | F26: Hoang | G26: 대리 | H26: 중급 | I26: 개발자 | J26: 학사 (HNT) | L26: 3년 | M26: 6 | N26: 6
C27: 16 | D27: AD-1 | E27: (주)지우컴퍼니 | F27: Hung | G27: 대리 | H27: 중급 | I27: 개발자 | J27: 학사 (HNT) | L27: 2년 | M27: 6 | N27: 6
C28: 17 | D28: AD-2 | E28: (주)지우컴퍼니 | F28: Trung | G28: 대리 | H28: 중급 | I28: 개발자 | J28: 학사 (HNT) | L28: 3년 | M28: 6 | N28: 6
C29: 18 | D29: ID-1 | E29: (주)지우컴퍼니 | F29: Anh | G29: 대리 | H29: 중급 | I29: 개발자 | J29: 학사 (HNT) | L29: 1년 | M29: 6 | N29: 6
C30: 19 | D30: ID-2 | E30: (주)지우컴퍼니 | F30: Quynh | G30: 대리 | H30: 중급 | I30: 개발자 | J30: 학사 (HNT) | L30: 2년 | M30: 6 | N30: 6
C31: 20 | D31: DW-1 | E31: (주)지우컴퍼니 | F31: 최은영 | G31: 매니저 | H31: 중급 | I31: 디자인 | J31: 학사 (오산대학) | L31: 14년 | M31: 5 | N31: 5
C32: 21 | D32: DW-2 | E32: (주)지우컴퍼니 | F32: 국지현 | G32: 대리 | H32: 중급 | I32: 디자인 | J32: 학사 (인덕대학) | L32: 14년 | M32: 5 | N32: 5
C33: 22 | D33: DA-1 | E33: (주)지우컴퍼니 | F33: 정현희 | G33: 대리 | H33: 중급 | I33: 디자인 | J33: 학사 (학은행) | L33: 19년 | M33: 5 | N33: 5
C34: 23 | D34: DA-2 | E34: (주)지우컴퍼니 | F34: 정소연 | G34: 대리 | H34: 중급 | I34: 디자인 | J34: 학사 (홍대) | L34: 7년 | M34: 5 | N34: 5
N35: =SUM(N12:N34) -> 148
C37: PM: Project Manager PL : Project Leader BD : Backend Developer | G37: FD : Front Developer AD : Android Developer ID : iOS Developer DW : Desinger Web DA : Desinger App
